[Event "Early-Titled-Tuesday-Blitz-February-20-2024"]
[Site "Chess.com"]
[Date "2024.02.20"]
[Round "2"]
[White "Sjakkerntobi"]
[Black "NM_Antelacus"]
[Result "1/2-1/2"]
[WhiteElo "2500"]
[BlackElo "2251"]
[TimeControl "180+1"]
[EndTime "8:18:11 PST"]
[Termination "Game drawn - insufficient material"]

1. e4 {[%clk 0:03:00.9]} 1... c5 {[%clk 0:02:59.5]} 2. Nf3 {[%clk 0:03:01]} 2...
Nc6 {[%clk 0:02:59.6]} 3. Bb5 {[%clk 0:02:59.4]} 3... g6 {[%clk 0:02:59]} 4.
Bxc6 {[%clk 0:02:59.3]} 4... dxc6 {[%clk 0:02:58.5]} 5. d3 {[%clk 0:02:59.6]}
5... Bg7 {[%clk 0:02:58.4]} 6. h3 {[%clk 0:03:00.1]} 6... Nf6 {[%clk 0:02:57.7]}
7. O-O {[%clk 0:02:59.8]} 7... O-O {[%clk 0:02:57.7]} 8. Nc3 {[%clk 0:02:54.6]}
8... Ne8 {[%clk 0:02:56.3]} 9. a4 {[%clk 0:02:54.9]} 9... b6 {[%clk 0:02:53]}
10. a5 {[%clk 0:02:54.6]} 10... Bb7 {[%clk 0:02:52.7]} 11. Be3 {[%clk
0:02:51.8]} 11... Nc7 {[%clk 0:02:51.8]} 12. Nd2 {[%clk 0:02:50.4]} 12... e5
{[%clk 0:02:50.4]} 13. f4 {[%clk 0:02:48.4]} 13... exf4 {[%clk 0:02:47.1]} 14.
Bxf4 {[%clk 0:02:49.3]} 14... Ne6 {[%clk 0:02:46.9]} 15. Be3 {[%clk 0:02:41.8]}
15... Nd4 {[%clk 0:02:46.3]} 16. Bf4 {[%clk 0:02:12.6]} 16... Ne6 {[%clk
0:02:41.9]} 17. Bg3 {[%clk 0:02:10.7]} 17... Rc8 {[%clk 0:02:39.8]} 18. axb6
{[%clk 0:02:05.7]} 18... axb6 {[%clk 0:02:38.9]} 19. Ra7 {[%clk 0:02:06]} 19...
Ba8 {[%clk 0:02:37.7]} 20. Nc4 {[%clk 0:02:04]} 20... Nd4 {[%clk 0:02:23.7]} 21.
Nd6 {[%clk 0:01:59.7]} 21... Rc7 {[%clk 0:02:19.9]} 22. Rxc7 {[%clk 0:01:59.6]}
22... Qxc7 {[%clk 0:02:19.3]} 23. Nf5 {[%clk 0:01:56.7]} 23... Be5 {[%clk
0:02:14.4]} 24. Bxe5 {[%clk 0:01:48.1]} 24... Qxe5 {[%clk 0:02:13.3]} 25. Ne3
{[%clk 0:01:48.4]} 25... b5 {[%clk 0:02:01.1]} 26. Ng4 {[%clk 0:01:41.4]} 26...
Qe7 {[%clk 0:01:58.6]} 27. Nf6+ {[%clk 0:01:36.9]} 27... Kg7 {[%clk 0:01:57.5]}
28. Ne2 {[%clk 0:01:31.3]} 28... Bb7 {[%clk 0:01:52.7]} 29. Nxd4 {[%clk
0:01:31.2]} 29... cxd4 {[%clk 0:01:52.1]} 30. Qd2 {[%clk 0:01:27.4]} 30... h6
{[%clk 0:01:48]} 31. Ng4 {[%clk 0:01:22.8]} 31... Qg5 {[%clk 0:01:46.5]} 32.
Qxg5 {[%clk 0:01:21.7]} 32... hxg5 {[%clk 0:01:45.8]} 33. Ne5 {[%clk 0:01:10.7]}
33... c5 {[%clk 0:01:21.7]} 34. Ra1 {[%clk 0:01:09.9]} 34... Ra8 {[%clk
0:01:18.4]} 35. Rxa8 {[%clk 0:01:00]} 35... Bxa8 {[%clk 0:01:18.2]} 36. b3
{[%clk 0:00:44]} 36... f5 {[%clk 0:01:08.1]} 37. exf5 {[%clk 0:00:40.4]} 37...
gxf5 {[%clk 0:01:07.6]} 38. Nd7 {[%clk 0:00:40.2]} 38... c4 {[%clk 0:01:04.3]}
39. dxc4 {[%clk 0:00:31]} 39... bxc4 {[%clk 0:01:04.4]} 40. Nb6 {[%clk
0:00:23.4]} 40... cxb3 {[%clk 0:01:00.5]} 41. cxb3 {[%clk 0:00:24.3]} 41... Bb7
{[%clk 0:00:55.8]} 42. Nc4 {[%clk 0:00:22.4]} 42... Kf7 {[%clk 0:00:52.5]} 43.
Kf2 {[%clk 0:00:22.3]} 43... Ke6 {[%clk 0:00:48.6]} 44. g3 {[%clk 0:00:20.9]}
44... Bd5 {[%clk 0:00:44.2]} 45. Nd2 {[%clk 0:00:21.2]} 45... f4 {[%clk
0:00:37.9]} 46. gxf4 {[%clk 0:00:20.7]} 46... gxf4 {[%clk 0:00:38.1]} 47. Ke2
{[%clk 0:00:20.1]} 47... Ke5 {[%clk 0:00:32.5]} 48. b4 {[%clk 0:00:15.7]} 48...
Bc6 {[%clk 0:00:30.6]} 49. h4 {[%clk 0:00:13.4]} 49... Kf5 {[%clk 0:00:27.3]}
50. Kd3 {[%clk 0:00:12.7]} 50... Kg4 {[%clk 0:00:25.7]} 51. Kxd4 {[%clk
0:00:13.2]} 51... Kxh4 {[%clk 0:00:25.9]} 52. Kc5 {[%clk 0:00:12.4]} 52... Be8
{[%clk 0:00:24.5]} 53. Kd4 {[%clk 0:00:10.1]} 53... Kg3 {[%clk 0:00:23.5]} 54.
Ke4 {[%clk 0:00:09.8]} 54... Bc6+ {[%clk 0:00:20.7]} 55. Kd4 {[%clk 0:00:10.2]}
55... f3 {[%clk 0:00:20.3]} 56. Kc5 {[%clk 0:00:10.8]} 56... Be8 {[%clk
0:00:19.1]} 57. Nxf3 {[%clk 0:00:10.1]} 57... Kxf3 {[%clk 0:00:19.1]} 58. b5
{[%clk 0:00:11]} 58... Bxb5 {[%clk 0:00:18.6]} 1/2-1/2

[Event "Early-Titled-Tuesday-Blitz-February-20-2024"]
[Site "Chess.com"]
[Date "2024.02.20"]
[Round "2"]
[White "vovachesss"]
[Black "LeninGuerra"]
[Result "1-0"]
[WhiteElo "2823"]
[BlackElo "2568"]
[TimeControl "180+1"]
[EndTime "8:18:12 PST"]
[Termination "vovachesss won by checkmate"]

1. e4 {[%clk 0:03:00.9]} 1... c5 {[%clk 0:02:59.7]} 2. Nf3 {[%clk 0:03:00.9]}
2... e6 {[%clk 0:03:00.1]} 3. c3 {[%clk 0:03:01]} 3... d5 {[%clk 0:02:59.4]} 4.
e5 {[%clk 0:03:00.8]} 4... Nc6 {[%clk 0:02:59]} 5. d4 {[%clk 0:03:01.4]} 5...
cxd4 {[%clk 0:02:59.9]} 6. cxd4 {[%clk 0:03:01.5]} 6... Nge7 {[%clk 0:03:00]} 7.
Na3 {[%clk 0:03:00.3]} 7... Nf5 {[%clk 0:02:59.3]} 8. Nc2 {[%clk 0:03:00.8]}
8... Be7 {[%clk 0:02:57.5]} 9. Bd3 {[%clk 0:03:00.5]} 9... O-O {[%clk
0:02:55.5]} 10. O-O {[%clk 0:03:00.9]} 10... a6 {[%clk 0:02:55.4]} 11. Bf4
{[%clk 0:02:54.9]} 11... b6 {[%clk 0:02:44.2]} 12. Qd2 {[%clk 0:02:53]} 12... a5
{[%clk 0:02:34.8]} 13. Rfc1 {[%clk 0:02:47.5]} 13... Ba6 {[%clk 0:02:33.3]} 14.
Bxf5 {[%clk 0:02:42.5]} 14... exf5 {[%clk 0:02:33.4]} 15. Ne3 {[%clk 0:02:43.4]}
15... Bb4 {[%clk 0:02:22.5]} 16. Qc2 {[%clk 0:02:15.9]} 16... Rc8 {[%clk
0:02:18.8]} 17. Qxf5 {[%clk 0:02:13.5]} 17... Be2 {[%clk 0:01:53.7]} 18. Ng5
{[%clk 0:01:40.4]} 18... g6 {[%clk 0:01:46.2]} 19. Qh3 {[%clk 0:01:40.8]} 19...
h5 {[%clk 0:01:41.6]} 20. Nf5 {[%clk 0:01:14.6]} 20... Be7 {[%clk 0:01:14.2]}
21. Nxe7+ {[%clk 0:01:06.8]} 21... Nxe7 {[%clk 0:01:11.9]} 22. Qe3 {[%clk
0:00:43.4]} 22... Bg4 {[%clk 0:01:01.7]} 23. h3 {[%clk 0:00:41.7]} 23... Be6
{[%clk 0:00:53.8]} 24. Nf3 {[%clk 0:00:23.8]} 24... Nf5 {[%clk 0:00:50.5]} 25.
Qd2 {[%clk 0:00:24.1]} 25... Qd7 {[%clk 0:00:47.3]} 26. Bg5 {[%clk 0:00:22.7]}
26... Rc6 {[%clk 0:00:40.8]} 27. Rxc6 {[%clk 0:00:18]} 27... Qxc6 {[%clk
0:00:40]} 28. Rc1 {[%clk 0:00:18.9]} 28... Qa4 {[%clk 0:00:36.9]} 29. Bf6 {[%clk
0:00:17.8]} 29... Qb4 {[%clk 0:00:29.8]} 30. Rc3 {[%clk 0:00:14.7]} 30... Rc8
{[%clk 0:00:18.9]} 31. g4 {[%clk 0:00:14.4]} 31... hxg4 {[%clk 0:00:18.7]} 32.
hxg4 {[%clk 0:00:15.1]} 32... Rxc3 {[%clk 0:00:15.7]} 33. bxc3 {[%clk 0:00:08]}
33... Qb1+ {[%clk 0:00:15.5]} 34. Kh2 {[%clk 0:00:06.9]} 34... Qe4 {[%clk
0:00:14.2]} 35. Ng1 {[%clk 0:00:02.2]} 35... Qxg4 {[%clk 0:00:12]} 36. f3 {[%clk
0:00:02.1]} 36... Qh5+ {[%clk 0:00:12.1]} 37. Kg2 {[%clk 0:00:02.3]} 37... Nh4+
{[%clk 0:00:12.7]} 38. Kf2 {[%clk 0:00:02.1]} 38... Nf5 {[%clk 0:00:12.4]} 39.
Qf4 {[%clk 0:00:02.6]} 39... Qh6 {[%clk 0:00:10.9]} 40. Bg5 {[%clk 0:00:02]}
40... Qg7 {[%clk 0:00:11.4]} 41. Ne2 {[%clk 0:00:02.6]} 41... Qf8 {[%clk
0:00:11.6]} 42. Bf6 {[%clk 0:00:02.6]} 42... Qa3 {[%clk 0:00:11.7]} 43. Qh2
{[%clk 0:00:02.4]} 43... Ng7 {[%clk 0:00:07.9]} 44. Qh6 {[%clk 0:00:02.8]} 44...
Qf8 {[%clk 0:00:08]} 45. Nf4 {[%clk 0:00:02.9]} 45... Bf5 {[%clk 0:00:07.8]} 46.
Nxd5 {[%clk 0:00:02.7]} 46... b5 {[%clk 0:00:07.6]} 47. Ne7+ {[%clk 0:00:03.1]}
47... Qxe7 {[%clk 0:00:08.2]} 48. Bxe7 {[%clk 0:00:04]} 48... Ne6 {[%clk
0:00:08.3]} 49. Bf6 {[%clk 0:00:04]} 49... Ng7 {[%clk 0:00:08.4]} 50. Qxg7#
{[%clk 0:00:04]} 1-0

[Event "Early-Titled-Tuesday-Blitz-February-20-2024"]
[Site "Chess.com"]
[Date "2024.02.20"]
[Round "2"]
[White "FontVella8"]
[Black "N_I_Chess"]
[Result "1/2-1/2"]
[WhiteElo "2704"]
[BlackElo "2296"]
[TimeControl "180+1"]
[EndTime "8:18:12 PST"]
[Termination "Game drawn by repetition"]

1. Nf3 {[%clk 0:03:00.9]} 1... Nf6 {[%clk 0:02:59.7]} 2. g3 {[%clk 0:02:58.9]}
2... d5 {[%clk 0:02:38.9]} 3. Bg2 {[%clk 0:02:59.8]} 3... Bf5 {[%clk 0:02:37.9]}
4. O-O {[%clk 0:03:00.1]} 4... e6 {[%clk 0:02:38]} 5. d3 {[%clk 0:03:00.7]} 5...
Bd6 {[%clk 0:02:35.1]} 6. Nbd2 {[%clk 0:03:00.9]} 6... O-O {[%clk 0:02:34.2]} 7.
Qe1 {[%clk 0:03:00.4]} 7... e5 {[%clk 0:02:27.6]} 8. e4 {[%clk 0:03:00]} 8...
dxe4 {[%clk 0:02:28.1]} 9. Nh4 {[%clk 0:02:56]} 9... Bg6 {[%clk 0:02:16.9]} 10.
Nxg6 {[%clk 0:02:54.3]} 10... hxg6 {[%clk 0:02:17.8]} 11. Nxe4 {[%clk
0:02:54.6]} 11... Nxe4 {[%clk 0:02:16.3]} 12. Qxe4 {[%clk 0:02:54.4]} 12... c6
{[%clk 0:02:15]} 13. Bd2 {[%clk 0:02:54.4]} 13... Nd7 {[%clk 0:02:12.4]} 14. Bc3
{[%clk 0:02:53.4]} 14... Nc5 {[%clk 0:01:52.4]} 15. Qe2 {[%clk 0:02:51.3]} 15...
Qc7 {[%clk 0:01:47.7]} 16. Rae1 {[%clk 0:02:51]} 16... Rae8 {[%clk 0:01:43]} 17.
h4 {[%clk 0:02:51.2]} 17... Na4 {[%clk 0:01:38.9]} 18. h5 {[%clk 0:02:43.9]}
18... Nxc3 {[%clk 0:01:37.2]} 19. bxc3 {[%clk 0:02:43.8]} 19... Re6 {[%clk
0:01:30.3]} 20. Bh3 {[%clk 0:02:37]} 20... Rf6 {[%clk 0:01:27.4]} 21. Kg2 {[%clk
0:02:32.7]} 21... Re8 {[%clk 0:01:14.8]} 22. hxg6 {[%clk 0:02:31]} 22... Rxg6
{[%clk 0:01:12.6]} 23. Bf5 {[%clk 0:02:30.8]} 23... Rg5 {[%clk 0:01:06.3]} 24.
Qe4 {[%clk 0:02:27]} 24... g6 {[%clk 0:00:46.3]} 25. Bh3 {[%clk 0:02:27]} 25...
Rh5 {[%clk 0:00:21.8]} 26. Rh1 {[%clk 0:02:24.8]} 26... Kg7 {[%clk 0:00:20.5]}
27. Qe2 {[%clk 0:01:34.3]} 27... Reh8 {[%clk 0:00:19]} 28. Bg4 {[%clk
0:01:33.4]} 28... Rxh1 {[%clk 0:00:19]} 29. Rxh1 {[%clk 0:01:34.3]} 29... Rxh1
{[%clk 0:00:19.1]} 30. Kxh1 {[%clk 0:01:35.2]} 30... Qe7 {[%clk 0:00:18.8]} 31.
Kg2 {[%clk 0:01:33.7]} 31... Qg5 {[%clk 0:00:19.1]} 32. Bc8 {[%clk 0:01:30.6]}
32... Qe7 {[%clk 0:00:18.9]} 33. Bg4 {[%clk 0:01:27.9]} 33... f5 {[%clk
0:00:18.2]} 34. Bf3 {[%clk 0:01:27.3]} 34... Qe6 {[%clk 0:00:18]} 35. c4 {[%clk
0:01:25.7]} 35... Bc5 {[%clk 0:00:18.4]} 36. c3 {[%clk 0:01:24.5]} 36... Qd6
{[%clk 0:00:19]} 37. Kf1 {[%clk 0:01:10.4]} 37... Bb6 {[%clk 0:00:19.1]} 38. g4
{[%clk 0:01:05.9]} 38... Qc5 {[%clk 0:00:17.9]} 39. gxf5 {[%clk 0:01:04.3]}
39... gxf5 {[%clk 0:00:18.8]} 40. Bg2 {[%clk 0:01:00.1]} 40... Kf6 {[%clk
0:00:19.3]} 41. Qf3 {[%clk 0:00:55.6]} 41... Qa3 {[%clk 0:00:14.2]} 42. Bh3
{[%clk 0:00:49.3]} 42... Qc1+ {[%clk 0:00:14]} 43. Kg2 {[%clk 0:00:48.7]} 43...
Qg5+ {[%clk 0:00:14.5]} 44. Kh1 {[%clk 0:00:35.9]} 44... Qc1+ {[%clk 0:00:14.4]}
45. Kg2 {[%clk 0:00:36]} 45... Qg5+ {[%clk 0:00:13.8]} 46. Kh2 {[%clk
0:00:09.4]} 46... Bc7 {[%clk 0:00:13.4]} 47. Kh1 {[%clk 0:00:03.7]} 47... Qc1+
{[%clk 0:00:13.9]} 48. Kg2 {[%clk 0:00:03.7]} 48... Qg5+ {[%clk 0:00:13.3]} 49.
Kf1 {[%clk 0:00:03.9]} 49... Qc1+ {[%clk 0:00:13]} 50. Kg2 {[%clk 0:00:03.7]}
50... Qg5+ {[%clk 0:00:13.4]} 51. Kf1 {[%clk 0:00:04.2]} 51... Qc1+ {[%clk
0:00:13.6]} 52. Kg2 {[%clk 0:00:04.7]} 1/2-1/2

[Event "Early-Titled-Tuesday-Blitz-February-20-2024"]
[Site "Chess.com"]
[Date "2024.02.20"]
[Round "2"]
[White "Chessdude1987"]
[Black "aistrel"]
[Result "0-1"]
[WhiteElo "2314"]
[BlackElo "2537"]
[TimeControl "180+1"]
[EndTime "8:18:12 PST"]
[Termination "aistrel won on time"]

1. e4 {[%clk 0:03:00.9]} 1... c6 {[%clk 0:02:53.3]} 2. d4 {[%clk 0:02:56]} 2...
d5 {[%clk 0:02:48.2]} 3. e5 {[%clk 0:02:56.4]} 3... Bf5 {[%clk 0:02:47.5]} 4.
Nd2 {[%clk 0:02:56.6]} 4... e6 {[%clk 0:02:46.4]} 5. Ne2 {[%clk 0:02:55.7]} 5...
c5 {[%clk 0:02:45.5]} 6. c4 {[%clk 0:02:54.3]} 6... Nc6 {[%clk 0:02:44.4]} 7.
cxd5 {[%clk 0:02:24.5]} 7... Qxd5 {[%clk 0:02:35.4]} 8. Ng3 {[%clk 0:02:15.5]}
8... cxd4 {[%clk 0:02:30.5]} 9. Nxf5 {[%clk 0:02:08.2]} 9... Qxe5+ {[%clk
0:02:30.4]} 10. Be2 {[%clk 0:02:00.2]} 10... Qxf5 {[%clk 0:02:30.1]} 11. O-O
{[%clk 0:01:57.8]} 11... Nf6 {[%clk 0:02:30.4]} 12. Nf3 {[%clk 0:01:54.3]} 12...
e5 {[%clk 0:02:21.9]} 13. Re1 {[%clk 0:01:43.3]} 13... Bd6 {[%clk 0:02:17.4]}
14. Bd3 {[%clk 0:01:37.4]} 14... e4 {[%clk 0:02:11.8]} 15. Ng5 {[%clk
0:01:22.3]} 15... O-O {[%clk 0:01:26]} 16. Nxe4 {[%clk 0:01:21.2]} 16... Rfe8
{[%clk 0:01:25.9]} 17. Nxf6+ {[%clk 0:00:52.2]} 17... Qxf6 {[%clk 0:01:25.1]}
18. Bd2 {[%clk 0:00:52.2]} 18... Ne5 {[%clk 0:01:07.1]} 19. Be4 {[%clk
0:00:51.9]} 19... Qh4 {[%clk 0:00:53.5]} 20. g3 {[%clk 0:00:50.8]} 20... Qh3
{[%clk 0:00:42.5]} 21. Bg2 {[%clk 0:00:48.4]} 21... Qf5 {[%clk 0:00:43]} 22. Bf4
{[%clk 0:00:45.6]} 22... Bb4 {[%clk 0:00:33.7]} 23. Re4 {[%clk 0:00:37.6]} 23...
Ng6 {[%clk 0:00:24.3]} 24. Rxd4 {[%clk 0:00:31.4]} 24... Re1+ {[%clk 0:00:20.9]}
25. Qxe1 {[%clk 0:00:31.4]} 25... Bxe1 {[%clk 0:00:21.8]} 26. Rxe1 {[%clk
0:00:31.8]} 26... Nxf4 {[%clk 0:00:19.2]} 27. Rxf4 {[%clk 0:00:31.6]} 27... Qc5
{[%clk 0:00:16.6]} 28. Bd5 {[%clk 0:00:30.5]} 28... Qxd5 {[%clk 0:00:14.6]} 29.
Rfe4 {[%clk 0:00:29.4]} 29... h6 {[%clk 0:00:13.4]} 30. Re7 {[%clk 0:00:27.8]}
30... Rd8 {[%clk 0:00:12.1]} 31. Rc7 {[%clk 0:00:27.4]} 31... Rd7 {[%clk
0:00:12.1]} 32. Rc8+ {[%clk 0:00:27.1]} 32... Kh7 {[%clk 0:00:12.6]} 33. h4
{[%clk 0:00:27.1]} 33... Qf3 {[%clk 0:00:12.3]} 34. Rcc1 {[%clk 0:00:26.1]}
34... Rd2 {[%clk 0:00:12.2]} 35. Rf1 {[%clk 0:00:26.1]} 35... Rxb2 {[%clk
0:00:12.7]} 36. Ra1 {[%clk 0:00:26.3]} 36... Qe2 {[%clk 0:00:11.9]} 37. a4
{[%clk 0:00:25.6]} 37... g5 {[%clk 0:00:12.4]} 38. hxg5 {[%clk 0:00:25.2]} 38...
hxg5 {[%clk 0:00:13.3]} 39. a5 {[%clk 0:00:24.9]} 39... Kg6 {[%clk 0:00:13.8]}
40. Kg2 {[%clk 0:00:24.9]} 40... g4 {[%clk 0:00:13.2]} 41. Kg1 {[%clk
0:00:24.9]} 41... Rb5 {[%clk 0:00:12.2]} 42. a6 {[%clk 0:00:23.4]} 42... b6
{[%clk 0:00:09.9]} 43. Rfe1 {[%clk 0:00:21.5]} 43... Qf3 {[%clk 0:00:10.3]} 44.
Rac1 {[%clk 0:00:21]} 44... Rh5 {[%clk 0:00:08.8]} 45. Rc6+ {[%clk 0:00:12.4]}
45... Qxc6 {[%clk 0:00:08.3]} 46. Re6+ {[%clk 0:00:12.3]} 46... fxe6 {[%clk
0:00:05.9]} 47. Kf1 {[%clk 0:00:11.9]} 47... Qe4 {[%clk 0:00:06]} 0-1

[Event "Early-Titled-Tuesday-Blitz-February-20-2024"]
[Site "Chess.com"]
[Date "2024.02.20"]
[Round "2"]
[White "ARMQUEEN"]
[Black "Fighterman91"]
[Result "0-1"]
[WhiteElo "2477"]
[BlackElo "2765"]
[TimeControl "180+1"]
[EndTime "8:18:17 PST"]
[Termination "Fighterman91 won by resignation"]

1. e4 {[%clk 0:03:00.9]} 1... c5 {[%clk 0:02:57.4]} 2. Nc3 {[%clk 0:03:00.3]}
2... Nc6 {[%clk 0:02:55]} 3. Bb5 {[%clk 0:03:00.4]} 3... Nd4 {[%clk 0:02:54.9]}
4. Bc4 {[%clk 0:03:00.8]} 4... e6 {[%clk 0:02:45.2]} 5. Nge2 {[%clk 0:02:59.7]}
5... Nxe2 {[%clk 0:02:43.1]} 6. Qxe2 {[%clk 0:02:59.1]} 6... a6 {[%clk
0:02:42.4]} 7. a4 {[%clk 0:02:58.6]} 7... d6 {[%clk 0:02:41.9]} 8. O-O {[%clk
0:02:58.3]} 8... Nf6 {[%clk 0:02:42]} 9. d3 {[%clk 0:02:58.6]} 9... Be7 {[%clk
0:02:42.6]} 10. f4 {[%clk 0:02:58]} 10... O-O {[%clk 0:02:43]} 11. Qf3 {[%clk
0:02:53.5]} 11... Bd7 {[%clk 0:02:40.5]} 12. e5 {[%clk 0:02:47.7]} 12... Bc6
{[%clk 0:02:39.2]} 13. Qg3 {[%clk 0:02:46.1]} 13... Nd5 {[%clk 0:02:19.1]} 14.
Ne4 {[%clk 0:02:43]} 14... Nb4 {[%clk 0:01:15.9]} 15. exd6 {[%clk 0:02:25]}
15... Bxd6 {[%clk 0:01:15.9]} 16. c3 {[%clk 0:02:21.4]} 16... Nd5 {[%clk
0:01:12.5]} 17. Bd2 {[%clk 0:02:18.7]} 17... Ne7 {[%clk 0:01:07.2]} 18. Qf2
{[%clk 0:02:01.1]} 18... b6 {[%clk 0:00:55.1]} 19. a5 {[%clk 0:01:42.9]} 19...
b5 {[%clk 0:00:53.9]} 20. Ba2 {[%clk 0:01:43]} 20... Rc8 {[%clk 0:00:48.7]} 21.
Rae1 {[%clk 0:01:39.9]} 21... Bd5 {[%clk 0:00:47.9]} 22. Bb1 {[%clk 0:01:37.6]}
22... c4 {[%clk 0:00:26.6]} 23. d4 {[%clk 0:01:34.4]} 23... f5 {[%clk
0:00:22.4]} 24. Ng5 {[%clk 0:01:33]} 24... Rf6 {[%clk 0:00:21.6]} 25. Re3 {[%clk
0:01:23.9]} 25... h6 {[%clk 0:00:21.1]} 26. Nf3 {[%clk 0:01:23]} 26... Qxa5
{[%clk 0:00:20.8]} 27. Ne5 {[%clk 0:01:15.5]} 27... Bxe5 {[%clk 0:00:21.3]} 28.
fxe5 {[%clk 0:01:14.7]} 28... Rg6 {[%clk 0:00:22.2]} 29. Rg3 {[%clk 0:01:13.5]}
29... Rf8 {[%clk 0:00:19.9]} 30. Rxg6 {[%clk 0:00:59.5]} 30... Nxg6 {[%clk
0:00:20.8]} 31. Qg3 {[%clk 0:00:59.7]} 31... Kh7 {[%clk 0:00:21.4]} 32. h4
{[%clk 0:00:57.4]} 32... Qd8 {[%clk 0:00:21.3]} 33. h5 {[%clk 0:00:52.2]} 33...
Ne7 {[%clk 0:00:21.9]} 34. Bc2 {[%clk 0:00:45.9]} 34... Be4 {[%clk 0:00:19.5]}
35. Bxe4 {[%clk 0:00:42.6]} 35... fxe4 {[%clk 0:00:20.4]} 36. Re1 {[%clk
0:00:42.8]} 36... Nd5 {[%clk 0:00:19.2]} 37. Qg6+ {[%clk 0:00:39.2]} 37... Kh8
{[%clk 0:00:19.2]} 38. Bxh6 {[%clk 0:00:36.7]} 38... Qe7 {[%clk 0:00:12.7]} 39.
Rxe4 {[%clk 0:00:34.2]} 39... Qf7 {[%clk 0:00:11.8]} 40. Qg5 {[%clk 0:00:20.1]}
40... Kh7 {[%clk 0:00:09]} 41. Bxg7 {[%clk 0:00:10.8]} 41... Qxg7 {[%clk
0:00:09.9]} 42. Qh4 {[%clk 0:00:10.6]} 42... Rg8 {[%clk 0:00:09.7]} 43. Re2
{[%clk 0:00:10.3]} 43... Qg5 {[%clk 0:00:09.5]} 44. Qe4+ {[%clk 0:00:10.4]}
44... Kh6 {[%clk 0:00:08.2]} 45. Qf3 {[%clk 0:00:09.3]} 45... Qg4 {[%clk
0:00:04.8]} 46. Qf2 {[%clk 0:00:07.1]} 46... Nf4 {[%clk 0:00:04.9]} 47. Rd2
{[%clk 0:00:07.3]} 47... Nh3+ {[%clk 0:00:05]} 0-1

[Event "Early-Titled-Tuesday-Blitz-February-20-2024"]
[Site "Chess.com"]
[Date "2024.02.20"]
[Round "2"]
[White "Eagle_2019"]
[Black "LeoLV10"]
[Result "1-0"]
[WhiteElo "2869"]
[BlackElo "2508"]
[TimeControl "180+1"]
[EndTime "8:18:19 PST"]
[Termination "Eagle_2019 won by resignation"]

1. c4 {[%clk 0:02:59.8]} 1... c5 {[%clk 0:02:59.9]} 2. Nc3 {[%clk 0:02:59.6]}
2... Nc6 {[%clk 0:03:00.3]} 3. Nf3 {[%clk 0:02:59.1]} 3... g6 {[%clk 0:03:00.8]}
4. e3 {[%clk 0:02:56.7]} 4... Bg7 {[%clk 0:02:58.3]} 5. d4 {[%clk 0:02:56.1]}
5... d6 {[%clk 0:02:58.7]} 6. d5 {[%clk 0:02:56]} 6... Nb8 {[%clk 0:02:58.3]} 7.
e4 {[%clk 0:02:53.7]} 7... Nf6 {[%clk 0:02:56.5]} 8. Be2 {[%clk 0:02:52.3]} 8...
O-O {[%clk 0:02:56.9]} 9. Be3 {[%clk 0:02:52]} 9... e6 {[%clk 0:02:55.9]} 10.
Nd2 {[%clk 0:02:50.4]} 10... exd5 {[%clk 0:02:55.6]} 11. cxd5 {[%clk 0:02:50.5]}
11... Re8 {[%clk 0:02:55.3]} 12. O-O {[%clk 0:02:50.3]} 12... a6 {[%clk
0:02:55.6]} 13. a4 {[%clk 0:02:49.5]} 13... h5 {[%clk 0:02:54.6]} 14. f3 {[%clk
0:02:46.2]} 14... Nbd7 {[%clk 0:02:53.2]} 15. Nc4 {[%clk 0:02:45.2]} 15... Nb6
{[%clk 0:02:47.9]} 16. Nd2 {[%clk 0:02:44]} 16... Nbd7 {[%clk 0:02:47.4]} 17. a5
{[%clk 0:02:43.9]} 17... Ne5 {[%clk 0:02:45.9]} 18. h3 {[%clk 0:02:41.2]} 18...
Qc7 {[%clk 0:01:57.2]} 19. f4 {[%clk 0:02:37.9]} 19... Ned7 {[%clk 0:01:57.5]}
20. Bf3 {[%clk 0:02:37.5]} 20... Rb8 {[%clk 0:01:56.4]} 21. Nc4 {[%clk 0:02:34]}
21... b5 {[%clk 0:01:55.1]} 22. axb6 {[%clk 0:02:33.5]} 22... Nxb6 {[%clk
0:01:55.6]} 23. Na5 {[%clk 0:02:32.7]} 23... Bd7 {[%clk 0:01:48.9]} 24. Qd2
{[%clk 0:02:28.4]} 24... Rbd8 {[%clk 0:01:47]} 25. Kh1 {[%clk 0:02:27.6]} 25...
Rb8 {[%clk 0:01:34.4]} 26. Bf2 {[%clk 0:02:23.3]} 26... Bb5 {[%clk 0:01:25.7]}
27. Nxb5 {[%clk 0:02:21.9]} 27... axb5 {[%clk 0:01:26.5]} 28. Nc6 {[%clk
0:02:19.8]} 28... Ra8 {[%clk 0:01:26.4]} 29. Rxa8 {[%clk 0:02:18.7]} 29... Rxa8
{[%clk 0:01:26.3]} 30. e5 {[%clk 0:02:18.6]} 30... Ne8 {[%clk 0:01:13.2]} 31. f5
{[%clk 0:02:16.1]} 31... Nc4 {[%clk 0:01:11.6]} 32. Qe2 {[%clk 0:02:13.6]} 32...
Nxe5 {[%clk 0:01:11.2]} 33. fxg6 {[%clk 0:02:12.7]} 33... fxg6 {[%clk
0:01:10.4]} 34. Nxe5 {[%clk 0:02:10.8]} 34... Bxe5 {[%clk 0:01:11.3]} 35. Be4
{[%clk 0:02:09.9]} 35... Qg7 {[%clk 0:01:09.6]} 36. Qxb5 {[%clk 0:02:03.5]}
36... Nf6 {[%clk 0:01:06.8]} 37. Bf3 {[%clk 0:02:02.3]} 37... Rf8 {[%clk
0:01:04.9]} 38. Qe2 {[%clk 0:01:59.8]} 38... Nh7 {[%clk 0:01:03.7]} 39. Bh4
{[%clk 0:01:54.3]} 39... Bxb2 {[%clk 0:00:55.4]} 40. Qe6+ {[%clk 0:01:48.4]}
40... Qf7 {[%clk 0:00:55.6]} 41. Qxd6 {[%clk 0:01:44.5]} 41... g5 {[%clk
0:00:54.5]} 42. Bf2 {[%clk 0:01:01]} 42... g4 {[%clk 0:00:33.1]} 43. hxg4 {[%clk
0:00:50.3]} 43... hxg4 {[%clk 0:00:34]} 44. Bxg4 {[%clk 0:00:51.2]} 44... Ng5
{[%clk 0:00:33.9]} 45. Qh6 {[%clk 0:00:45.8]} 45... Qf6 {[%clk 0:00:20.5]} 46.
Qxf6 {[%clk 0:00:40.4]} 46... Rxf6 {[%clk 0:00:21.4]} 47. Kg1 {[%clk 0:00:40.7]}
47... Ne4 {[%clk 0:00:21.8]} 48. Be3 {[%clk 0:00:37]} 48... c4 {[%clk
0:00:19.1]} 49. Be2 {[%clk 0:00:34.2]} 49... c3 {[%clk 0:00:16]} 50. Bd3 {[%clk
0:00:31.7]} 50... Rxf1+ {[%clk 0:00:15.6]} 51. Kxf1 {[%clk 0:00:32.6]} 51... Nf6
{[%clk 0:00:15.8]} 52. Bd4 {[%clk 0:00:31.1]} 52... Nxd5 {[%clk 0:00:15.7]} 53.
Bc4 {[%clk 0:00:30.9]} 53... c2 {[%clk 0:00:16]} 54. Bxd5+ {[%clk 0:00:30.4]}
54... Kh7 {[%clk 0:00:16.6]} 55. Bxb2 {[%clk 0:00:30.3]} 55... Kh6 {[%clk
0:00:15.9]} 56. Be4 {[%clk 0:00:30.1]} 56... Kg5 {[%clk 0:00:16.8]} 57. Bxc2
{[%clk 0:00:30.3]} 57... Kg4 {[%clk 0:00:17.3]} 58. Kf2 {[%clk 0:00:30.6]} 58...
Kh4 {[%clk 0:00:17.5]} 59. Kf3 {[%clk 0:00:30.3]} 59... Kg5 {[%clk 0:00:17.6]}
60. g3 {[%clk 0:00:30.7]} 60... Kh5 {[%clk 0:00:17.9]} 61. Kf4 {[%clk
0:00:30.8]} 61... Kh6 {[%clk 0:00:17.6]} 62. Bd1 {[%clk 0:00:30.7]} 62... Kg6
{[%clk 0:00:18.5]} 63. g4 {[%clk 0:00:31]} 63... Kh6 {[%clk 0:00:19.4]} 64. g5+
{[%clk 0:00:31.4]} 64... Kg6 {[%clk 0:00:20.3]} 65. Kg4 {[%clk 0:00:30]} 65...
Kf7 {[%clk 0:00:21.2]} 66. Kf5 {[%clk 0:00:30.4]} 1-0